fUSD/lending_fUSD_20250110
["ID","MTS","AMOUNT","RATE_DAILY","PERIOD"]
[348392664,1736501432990,-1111.47,9.995e-05,2]
[348392665,1736501433001,-500.0,9.995e-05,2]
[348392666,1736501433010,-500.0,9.995e-05,2]
[348392667,1736501433019,-500.0,9.995e-05,2]
[348392668,1736501433029,-879.38,9.995e-05,2]
[348392669,1736501433039,-636.39,9.995e-05,2]
[348392670,1736501433049,-1646.24,9.995e-05,2]
[348392671,1736501433059,-500.0,9.995e-05,2]
[348392672,1736501433068,-500.0,9.995e-05,2]
[348392673,1736501433078,-2204.14,9.995e-05,2]
[348392674,1736501433087,-500.0,9.995e-05,2]
[348392675,1736501433096,-500.0,9.995e-05,2]
[348392676,1736501433106,-932.57,9.995e-05,2]
[348392677,1736501433115,-732.13,9.995e-05,2]
[348392678,1736501433124,-919.31,9.995e-05,2]
[348392679,1736501433133,-500.0,9.995e-05,2]
[348392680,1736501433143,-710.37,9.995e-05,2]
[348392681,1736501433152,-500.0,9.995e-05,2]
[348392682,1736501433162,-830.7,9.995e-05,2]
[348392683,1736501433171,-3222.83,9.995e-05,2]
[348392684,1736501433182,-500.0,9.995e-05,2]
[348392685,1736501433192,-500.0,9.995e-05,2]
[348392686,1736501433202,-500.0,9.995e-05,2]
[348392687,1736501433211,-500.0,9.995e-05,2]
[348392688,1736501433220,-507.68163865,9.995e-05,2]
[348392689,1736501433229,-500.0,9.995e-05,2]
[348392690,1736501433239,-1434.25,9.995e-05,2]
[348392691,1736501433248,-926.82,9.995e-05,2]
[348392692,1736501433258,-500.0,9.995e-05,2]
[348392693,1736501433268,-811.56961401,9.997e-05,2]
[348392694,1736501433277,-1192.76,9.997e-05,2]
[348392695,1736501433287,-661.95,9.997e-05,2]
[348392696,1736501433296,-1670.59,9.997e-05,2]
[348392697,1736501433306,-806.55,9.997e-05,2]
[348392698,1736501433316,-574.38,9.997e-05,2]
[348392699,1736501433326,-569.48,9.997e-05,2]
[348392700,1736501433336,-1391.92,9.997e-05,2]
[348392701,1736501433345,-663.01,9.997e-05,2]
[348392702,1736501433355,-500.0,9.997e-05,2]
[348392703,1736501433365,-599.96,9.997e-05,2]
[348392704,1736501433375,-500.0,9.997e-05,2]
[348392705,1736501433384,-500.0,9.997e-05,2]
[348392706,1736501433393,-931.91,9.997e-05,2]
[348392707,1736501433403,-1047.0,9.997e-05,2]
[348392708,1736501433413,-639.17,9.997e-05,2]
[348392709,1736501433423,-500.0,9.997e-05,2]
[348392710,1736501433433,-774.21,9.997e-05,2]
[348392711,1736501433443,-500.0,9.997e-05,2]
[348392712,1736501433452,-500.0,9.997e-05,2]
[348392713,1736501433462,-781.12,9.997e-05,2]
[348392714,1736501433471,-500.0,9.998e-05,2]
[348392715,1736501433481,-500.0,9.998e-05,2]
[348392716,1736501433490,-500.0,9.998e-05,2]
[348392717,1736501433499,-440328.07410804,9.998e-05,2]
[348392718,1736501433512,-7988.3509931,9.998e-05,2]
[348392719,1736501433539,-18989.59999999,9.998e-05,2]
[348392720,1736501433550,-534.97720104,9.998e-05,2]
[348392721,1736501433562,-949.94196682,9.998e-05,2]
[348392722,1736501433574,-550.05803318,9.998e-05,2]
[348392723,1736501433612,-940.86405761,9.998e-05,2]
[348392724,1736501433624,-612.23105833,9.998e-05,2]
[348392725,1736501433636,-10395.15865238,9.998e-05,2]
[348392726,1736501433677,-89957.58664282,9.998e-05,2]
[348392727,1736501433688,-19914.75,9.998e-05,2]
[348392728,1736501438017,-1932.58,9.997e-05,2]
[348392729,1736501438027,-37137.89311493,9.998e-05,2]
[348392730,1736501438072,-70365.06582902,9.998e-05,2]
[348392731,1736501438087,-1360.72366522,9.998e-05,2]
[348392732,1736501438133,-993292.68501551,9.998e-05,2]
[348392733,1736501438145,-500.0,9.998e-05,2]
[348392734,1736501438154,-871.9,9.998e-05,2]
[348392735,1736501438164,-505.01,9.998e-05,2]
[348392736,1736501438174,-822.99016447,9.998e-05,2]
[348392737,1736501438183,-833.02,9.998e-05,2]
[348392738,1736501438193,-672.41,9.998e-05,2]
[348392739,1736501438203,-657.1,9.998e-05,2]
[348392740,1736501438213,-766.63,9.998e-05,2]
[348392741,1736501438223,-651.51,9.998e-05,2]
[348392742,1736501438234,-1151.67,9.998e-05,2]
[348392743,1736501438247,-1944.97,9.998e-05,2]
[348392744,1736501438258,-1198.02,9.998e-05,2]
[348392745,1736501438268,-500.0,9.998e-05,2]
[348392746,1736501438280,-2022.67,9.998e-05,2]
[348392747,1736501438292,-734.87,9.998e-05,2]
[348392748,1736501438301,-4638.79,9.998e-05,2]
[348392749,1736501438311,-500.0,9.999e-05,2]
[348392750,1736501438321,-500.0,9.999e-05,2]
[348392751,1736501438330,-500.0,9.999e-05,2]
[348392752,1736501438339,-889.3,9.999e-05,2]
[348392753,1736501438348,-708.61,9.999e-05,2]
[348392754,1736501438358,-1079.89,9.999e-05,2]
[348392755,1736501438367,-1000.0,9.999e-05,2]
[348392756,1736501438377,-824.8,9.999e-05,2]
[348392757,1736501438386,-500.0,9.999e-05,2]
[348392758,1736501438394,-1798.73,9.999e-05,2]
[348392759,1736501438404,-6134.11,9.999e-05,2]
[348392760,1736501438414,-6134.11,9.999e-05,2]
[348392761,1736501438423,-6134.11,9.999e-05,2]
[348392763,1736501438432,-251.821979,9.999e-05,2]
[348392765,1736501438441,-259.690652,9.999e-05,2]
[348392767,1736501438451,-500.0,9.999e-05,2]
[348392768,1736501438460,-205.59955707,9.999e-05,2]
[348392769,1736501438469,-1000.0,0.0001,2]
[348392770,1736501438478,-1000.0,0.0001,2]
[348392771,1736501438487,-1000.0,0.0001,2]
[348392772,1736501438496,-1000.0,0.0001,2]
[348392773,1736501438506,-1000.0,0.0001,2]
[348392774,1736501438515,-1000.0,0.0001,2]
[348392775,1736501438525,-1000.0,0.0001,2]
[348392776,1736501438534,-1000.0,0.0001,2]
[348392777,1736501438543,-1000.0,0.0001,2]
[348392778,1736501438553,-1000.0,0.0001,2]
[348392779,1736501438563,-1502052.33057312,0.0001,2]
[348392780,1736501438574,-654.06454835,0.0001,2]
[348392782,1736501440431,-951.13,9.995e-05,2]
[348392783,1736501440445,-496.825,9.995e-05,2]
[348392786,1736501443996,-353.215,9.995e-05,2]
[348392787,1736501444006,-167.78811425,9.997e-05,2]
[348392788,1736501444015,-57.72688575,0.0001,2]
[348392789,1736501444059,-17005.62217408,0.0001,2]
[348392790,1736501444070,-1838.3197628,0.0001,2]
[348392791,1736501444123,-578352.16587798,0.0001,2]
[348392792,1736501444135,-68106.84587931,0.0001,2]
[348392793,1736501444146,-362.47248263,0.0001,2]
[348392794,1736501444298,-3520.103004,0.0001,2]
[348392795,1736501444420,-778073.54445391,0.0001,2]
[348392952,1736501446110,-500.0,9.997e-05,2]
[348392954,1736501446120,-899.62,9.998e-05,2]
[348392956,1736501446130,-2240.04624575,0.0001,2]
[348392972,1736501446274,-758.01602462,0.0001,2]
[348392974,1736501446285,-28530.8192,0.0001,2]
[348392982,1736501446346,-389.5807845,0.0001,2]
[348393348,1736501842289,993.9,8.219e-05,2]
[348393379,1736502632295,-193.16,9.226e-05,2]
[348393380,1736502632305,-502.47990358,9.226e-05,2]
[348393381,1736502632315,-250.0,9.245e-05,2]
[348393382,1736502632325,-208.86820429,9.265e-05,2]
[348393383,1736502632353,-637.82,9.265e-05,2]
[348393384,1736502632468,-153.31179571,9.265e-05,2]
[348393385,1736502632478,-426.23,9.345e-05,2]
[348393386,1736502632487,-1000.0,9.37e-05,2]
[348393387,1736502632496,-7274.11632769,9.37e-05,2]
[348393388,1736502632507,-928.1963,9.897e-05,2]
[348393389,1736502632516,-2500.0,9.899e-05,2]
[348393390,1736502632526,-150.0,9.945e-05,2]
[348393391,1736502632535,-171.65252412,9.967e-05,2]
[348393392,1736502632544,-163.10921492,9.973e-05,2]
[348393393,1736502632554,-150.0,9.994e-05,2]
[348393394,1736502632563,-234.823,9.995e-05,2]
[348393395,1736502632572,-2299.426,9.995e-05,2]
[348393396,1736502632581,-651.51,9.995e-05,2]
[348393397,1736502632591,-1897.59,9.995e-05,2]
[348393398,1736502632601,-1863.93,9.995e-05,2]
[348393399,1736502632610,-500.0,9.995e-05,2]
[348393400,1736502632619,-734.87,9.995e-05,2]
[348393401,1736502632629,-899.19,9.995e-05,2]
[348393402,1736502632638,-747.41,9.995e-05,2]
[348393403,1736502632648,-957.06,9.995e-05,2]
[348393404,1736502632657,-1133.55,9.995e-05,2]
[348393405,1736502632666,-1000.0,9.995e-05,2]
[348393406,1736502632675,-869.97,9.995e-05,2]
[348393407,1736502632684,-500.0,9.995e-05,2]
[348393408,1736502632693,-500.0,9.997e-05,2]
[348393409,1736502632703,-500.0,9.997e-05,2]
[348393410,1736502632712,-196.03164061,9.997e-05,2]
[348393411,1736502632722,-500.0,9.997e-05,2]
[348393412,1736502632731,-500.0,9.997e-05,2]
[348393413,1736502632741,-1533.88,9.997e-05,2]
[348393414,1736502632750,-500.0,9.997e-05,2]
[348393415,1736502632760,-500.0,9.997e-05,2]
[348393416,1736502632769,-472.48458383,9.997e-05,2]
[348393417,1736502632778,-541.76,9.997e-05,2]
[348393418,1736502632788,-508.32434252,9.997e-05,2]
[348393419,1736502632798,-525.52,9.997e-05,2]
[348393420,1736502632808,-500.0,9.997e-05,2]
[348393421,1736502632816,-500.0,9.997e-05,2]
[348393422,1736502632825,-487.54172076,9.997e-05,2]
[348393423,1736502632834,-500.0,9.997e-05,2]
[348393424,1736502632844,-500.0,9.997e-05,2]
[348393425,1736502632852,-500.0,9.997e-05,2]
[348393426,1736502632861,-639.94682435,9.997e-05,2]
[348393427,1736502632870,-500.0,9.997e-05,2]
[348393428,1736502632880,-500.0,9.997e-05,2]
[348393429,1736502632889,-500.0,9.997e-05,2]
[348393430,1736502632899,-500.0,9.997e-05,2]
[348393431,1736502632908,-500.0,9.997e-05,2]
[348393432,1736502632917,-500.0,9.997e-05,2]
[348393433,1736502632926,-272.56569361,9.997e-05,2]
[348393448,1736502643258,-227.43430639,9.997e-05,2]
[348393449,1736502643267,-500.0,9.997e-05,2]
[348393450,1736502643278,-500.0,9.997e-05,2]
[348393451,1736502643290,-216.03567961,9.997e-05,2]
[348393452,1736502643315,-283.96432039,9.997e-05,2]
[348393453,1736502643325,-500.0,9.997e-05,2]
[348393454,1736502643334,-500.0,9.997e-05,2]
[348393455,1736502643343,-500.0,9.997e-05,2]
[348393456,1736502643352,-500.0,9.997e-05,2]
[348393457,1736502643362,-500.0,9.997e-05,2]
[348393458,1736502643372,-500.0,9.997e-05,2]
[348393459,1736502643381,-500.0,9.997e-05,2]
[348393460,1736502643390,-500.0,9.997e-05,2]
[348393461,1736502643400,-565.99,9.997e-05,2]
[348393462,1736502643409,-500.0,9.997e-05,2]
[348393463,1736502643418,-500.0,9.997e-05,2]
[348393464,1736502643428,-500.0,9.997e-05,2]
[348393465,1736502643437,-500.0,9.997e-05,2]
[348393466,1736502643447,-500.0,9.997e-05,2]
[348393467,1736502643457,-500.0,9.997e-05,2]
[348393468,1736502643467,-500.0,9.997e-05,2]
[348393469,1736502643476,-500.0,9.997e-05,2]
[348393470,1736502643485,-500.0,9.997e-05,2]
[348393471,1736502643495,-500.0,9.997e-05,2]
[348393472,1736502643505,-500.0,9.997e-05,2]
[348393473,1736502643517,-169.34037417,9.997e-05,2]
[348393474,1736502643527,-500.0,9.997e-05,2]
[348393475,1736502643535,-515.55,9.997e-05,2]
[348393476,1736502643544,-500.0,9.997e-05,2]
[348393477,1736502643554,-500.0,9.997e-05,2]
[348393478,1736502643563,-500.0,9.997e-05,2]
[348393479,1736502643572,-500.0,9.997e-05,2]
[348393480,1736502643581,-500.0,9.997e-05,2]
[348393481,1736502643590,-500.0,9.997e-05,2]
[348393484,1736502643599,-500.0,9.997e-05,2]
[348393486,1736502643608,-500.0,9.997e-05,2]
[348393489,1736502643617,-500.0,9.997e-05,2]
[348393490,1736502643626,-500.0,9.997e-05,2]
[348393491,1736502643635,-500.0,9.997e-05,2]
[348393492,1736502643644,-500.0,9.997e-05,2]
[348393493,1736502643653,-500.0,9.997e-05,2]
[348393494,1736502643664,-571.61249942,9.997e-05,2]
[348393495,1736502643673,-500.0,9.997e-05,2]
[348393496,1736502643682,-500.0,9.997e-05,2]
[348393497,1736502643691,-500.0,9.997e-05,2]
[348393498,1736502643700,-500.0,9.997e-05,2]
[348393499,1736502643709,-500.0,9.997e-05,2]
[348393500,1736502643719,-564.16,9.997e-05,2]
[348393501,1736502643728,-500.0,9.997e-05,2]
[348393502,1736502643737,-500.0,9.997e-05,2]
[348393503,1736502643746,-500.0,9.997e-05,2]
[348393504,1736502643755,-500.0,9.997e-05,2]
[348393505,1736502643764,-500.0,9.997e-05,2]
[348393506,1736502643774,-500.0,9.997e-05,2]
[348393507,1736502643782,-500.0,9.997e-05,2]
[348393508,1736502643791,-500.0,9.997e-05,2]
[348393509,1736502643800,-609.66,9.997e-05,2]
[348393510,1736502643810,-500.0,9.997e-05,2]
[348393511,1736502643819,-500.0,9.997e-05,2]
[348393512,1736502643828,-500.0,9.997e-05,2]
[348393513,1736502643837,-500.0,9.997e-05,2]
[348393514,1736502643846,-500.0,9.997e-05,2]
[348393515,1736502643855,-641.85,9.997e-05,2]
[348393516,1736502643865,-500.0,9.997e-05,2]
[348393517,1736502643875,-500.0,9.997e-05,2]
[348393518,1736502643885,-576.8,9.997e-05,2]
[348393519,1736502643894,-500.0,9.997e-05,2]
[348393520,1736502643903,-500.0,9.997e-05,2]
[348393521,1736502643912,-500.0,9.997e-05,2]
[348393522,1736502643921,-500.0,9.997e-05,2]
[348393523,1736502643930,-500.0,9.997e-05,2]
[348393524,1736502643939,-540.50589713,9.997e-05,2]
[348393525,1736502643948,-500.0,9.997e-05,2]
[348393526,1736502643957,-502.48217159,9.997e-05,2]
[348393527,1736502643966,-310.82688619,9.997e-05,2]
[348393528,1736502643975,-500.0,9.997e-05,2]
[348393529,1736502643984,-1647.97398634,9.997e-05,2]
[348393530,1736502643993,-500.0,9.997e-05,2]
[348393531,1736502644003,-574.97149228,9.997e-05,2]
[348393532,1736502644012,-509.05,9.997e-05,2]
[348393533,1736502644021,-500.0,9.997e-05,2]
[348393534,1736502644031,-506.76067206,9.997e-05,2]
[348393535,1736502644040,-500.0,9.997e-05,2]
[348393536,1736502644050,-500.0,9.997e-05,2]
[348393537,1736502644059,-500.0,9.997e-05,2]
[348393538,1736502644069,-500.0,9.997e-05,2]
[348393539,1736502644078,-500.0,9.997e-05,2]
[348393540,1736502644087,-504.03504514,9.997e-05,2]
[348393541,1736502644096,-500.0,9.997e-05,2]
[348393542,1736502644105,-500.0,9.997e-05,2]
[348393543,1736502644114,-500.0,9.997e-05,2]
[348393544,1736502644123,-500.0,9.997e-05,2]
[348393545,1736502644132,-809.04,9.997e-05,2]
[348393546,1736502644141,-500.0,9.997e-05,2]
[348393547,1736502644150,-500.0,9.997e-05,2]
[348393548,1736502644160,-500.0,9.997e-05,2]
[348393549,1736502644169,-582.33,9.997e-05,2]
[348393550,1736502644178,-500.0,9.997e-05,2]
[348393551,1736502644187,-500.0,9.997e-05,2]
[348393552,1736502644196,-500.0,9.997e-05,2]
[348393553,1736502644205,-1835.25,9.997e-05,2]
[348393554,1736502644214,-500.0,9.997e-05,2]
[348393555,1736502644223,-500.0,9.997e-05,2]
[348393556,1736502644232,-552.63,9.997e-05,2]
[348393557,1736502644241,-500.0,9.997e-05,2]
[348393558,1736502644250,-1128.79,9.997e-05,2]
[348393559,1736502644259,-668.11,9.997e-05,2]
[348393560,1736502644268,-500.0,9.997e-05,2]
[348393561,1736502644278,-500.0,9.997e-05,2]
[348393562,1736502644290,-1195.6,9.997e-05,2]
[348393563,1736502644298,-609.87,9.997e-05,2]
[348393564,1736502644307,-500.0,9.997e-05,2]
[348393565,1736502644316,-500.0,9.997e-05,2]
[348393566,1736502644326,-500.0,9.997e-05,2]
[348393567,1736502644335,-2342.42,9.997e-05,2]
[348393568,1736502644344,-500.0,9.997e-05,2]
[348393569,1736502644354,-503.93246675,9.997e-05,2]
[348393570,1736502644363,-701.62,9.997e-05,2]
[348393571,1736502644372,-500.0,9.997e-05,2]
[348393572,1736502644381,-680.77,9.997e-05,2]
[348393573,1736502644390,-879.42,9.997e-05,2]
[348393574,1736502644399,-796.09,9.997e-05,2]
[348393575,1736502644408,-500.0,9.997e-05,2]
[348393576,1736502644417,-500.0,9.997e-05,2]
[348393577,1736502644426,-747.81,9.997e-05,2]
[348393578,1736502644435,-1026.88,9.997e-05,2]
[348393579,1736502644443,-714.08,9.997e-05,2]
[348393580,1736502644452,-500.0,9.997e-05,2]
[348393581,1736502644461,-2281.29,9.997e-05,2]
[348393582,1736502644471,-500.0,9.998e-05,2]
[348393583,1736502644480,-500.0,9.998e-05,2]
[348393584,1736502644489,-500.0,9.998e-05,2]
[348393585,1736502644498,-500.0,9.998e-05,2]
[348393586,1736502644507,-500.0,9.998e-05,2]
[348393587,1736502644516,-500.0,9.998e-05,2]
[348393588,1736502644526,-500.0,9.998e-05,2]
[348393589,1736502644535,-500.0,9.998e-05,2]
[348393590,1736502644544,-671.4,9.998e-05,2]
[348393591,1736502644554,-500.0,9.998e-05,2]
[348393592,1736502644563,-545.75,9.998e-05,2]
[348393593,1736502644572,-500.0,9.998e-05,2]
[348393594,1736502644581,-501.70056532,9.998e-05,2]
[348393595,1736502644591,-635.38,9.998e-05,2]
[348393596,1736502644599,-501.48072244,9.998e-05,2]
[348393597,1736502644608,-500.0,9.998e-05,2]
[348393598,1736502644617,-500.0,9.998e-05,2]
[348393599,1736502644626,-500.0,9.998e-05,2]
[348393600,1736502644635,-500.0,9.998e-05,2]
[348393601,1736502644644,-500.57432168,9.998e-05,2]
[348393602,1736502644653,-500.4992597,9.998e-05,2]
[348393603,1736502644662,-500.0,9.998e-05,2]
[348393604,1736502644671,-500.0,9.998e-05,2]
[348393605,1736502644680,-500.0,9.998e-05,2]
[348393606,1736502644689,-500.0,9.998e-05,2]
[348393607,1736502644699,-893.08,9.998e-05,2]
[348393608,1736502644708,-500.0,9.998e-05,2]
[348393609,1736502644716,-504.07263845,9.998e-05,2]
[348393610,1736502644725,-500.57618709,9.998e-05,2]
[348393611,1736502644734,-500.60984247,9.998e-05,2]
[348393612,1736502644743,-500.0,9.998e-05,2]
[348393613,1736502644752,-501.77485595,9.998e-05,2]
[348393614,1736502644761,-500.0,9.998e-05,2]
[348393615,1736502644770,-500.77967767,9.998e-05,2]
[348393616,1736502644779,-500.0,9.998e-05,2]
[348393617,1736502644788,-2857.54,9.998e-05,2]
[348393618,1736502644797,-500.0,9.998e-05,2]
[348393619,1736502644807,-501.71954857,9.998e-05,2]
[348393620,1736502644817,-1276.47,9.998e-05,2]
[348393621,1736502644826,-241.42796267,9.998e-05,2]
[348393622,1736502644835,-500.32362983,9.998e-05,2]
[348393623,1736502644844,-500.0,9.998e-05,2]
[348393624,1736502644853,-501.66036588,9.998e-05,2]
[348393625,1736502644862,-476.41427445,9.998e-05,2]
[348393626,1736502644871,-500.0,9.998e-05,2]
[348393627,1736502644880,-500.0,9.998e-05,2]
[348393628,1736502644889,-500.0,9.998e-05,2]
[348393629,1736502644899,-500.0,9.998e-05,2]
[348393630,1736502644908,-500.0,9.998e-05,2]
[348393631,1736502644917,-500.0,9.998e-05,2]
[348393632,1736502644927,-706.06,9.998e-05,2]
[348393633,1736502644936,-1172.64,9.998e-05,2]
[348393634,1736502644945,-500.0,9.998e-05,2]
[348393635,1736502644955,-288.75622264,9.998e-05,2]
[348393636,1736502644964,-501.07088737,9.998e-05,2]
[348393637,1736502644974,-501.39919363,9.998e-05,2]
[348393638,1736502644983,-1600.98,9.998e-05,2]
[348393639,1736502644992,-500.0,9.998e-05,2]
[348393640,1736502645001,-500.0,9.998e-05,2]
[348393641,1736502645011,-539.97857043,9.998e-05,2]
[348393642,1736502645020,-579.7,9.998e-05,2]
[348393643,1736502645029,-502.12273017,9.998e-05,2]
[348393644,1736502645039,-500.0,9.998e-05,2]
[348393645,1736502645048,-500.0,9.998e-05,2]
[348393646,1736502645057,-500.0,9.998e-05,2]
[348393647,1736502645066,-572.50439606,9.998e-05,2]
[348393648,1736502645075,-767.85,9.998e-05,2]
[348393649,1736502645084,-500.0,9.998e-05,2]
[348393650,1736502645094,-501.65646669,9.998e-05,2]
[348393651,1736502645103,-550.45,9.998e-05,2]
[348393652,1736502645112,-500.0,9.998e-05,2]
[348393653,1736502645121,-500.0,9.998e-05,2]
[348393654,1736502645130,-500.0,9.998e-05,2]
[348393655,1736502645139,-500.0,9.998e-05,2]
[348393656,1736502645148,-1333.93,9.998e-05,2]
[348393657,1736502645157,-501.61535428,9.998e-05,2]
[348393658,1736502645166,-500.0,9.998e-05,2]
[348393659,1736502645175,-281.99606269,9.998e-05,2]
[348393660,1736502645184,-501.05451407,9.998e-05,2]
[348393661,1736502645193,-500.0,9.998e-05,2]
[348393662,1736502645203,-921.21,9.998e-05,2]
[348393663,1736502645212,-501.93336177,9.998e-05,2]
[348393664,1736502645221,-472.98846959,9.998e-05,2]
[348393665,1736502645230,-551.74,9.998e-05,2]
[348393666,1736502645239,-500.66180709,9.998e-05,2]
[348393667,1736502645248,-574.96,9.998e-05,2]
[348393668,1736502645257,-612.54,9.998e-05,2]
[348393669,1736502645266,-500.0,9.998e-05,2]
[348393670,1736502645275,-500.0,9.998e-05,2]
[348393671,1736502645287,-500.0,9.998e-05,2]
[348393672,1736502645296,-500.0,9.998e-05,2]
[348393673,1736502645305,-1003.38,9.998e-05,2]
[348393674,1736502645313,-1635.36,9.998e-05,2]
[348393675,1736502645323,-603.86,9.998e-05,2]
[348393676,1736502645332,-504.39439074,9.998e-05,2]
[348393677,1736502645341,-503.1530637,9.999e-05,2]
[348393678,1736502645350,-591.69186423,9.999e-05,2]
[348393679,1736502645359,-503.20599932,9.999e-05,2]
[348393680,1736502645368,-503.54564719,9.999e-05,2]
[348393681,1736502645377,-270.37212377,9.999e-05,2]
[348393682,1736502645386,-561.49,9.999e-05,2]
[348393683,1736502645395,-503.33359347,9.999e-05,2]
[348393684,1736502645404,-503.22456951,9.999e-05,2]
[348393685,1736502645413,-582.38179807,9.999e-05,2]
[348393686,1736502645422,-599.82,9.999e-05,2]
[348393687,1736502645431,-500.0,9.999e-05,2]
[348393688,1736502645440,-729.11,9.999e-05,2]
[348393689,1736502645450,-500.0,9.999e-05,2]
[348393690,1736502645660,-500.0,9.999e-05,2]
[348393691,1736502645670,-624.76,9.999e-05,2]
[348393692,1736502645679,-378.34049213,9.999e-05,2]
[348393693,1736502645688,-500.0,9.999e-05,2]
[348393694,1736502645698,-500.0,9.999e-05,2]
[348393695,1736502645708,-500.0,9.999e-05,2]
[348393696,1736502645718,-500.0,9.999e-05,2]
[348393697,1736502645727,-500.0,9.999e-05,2]
[348393698,1736502645737,-500.0,9.999e-05,2]
[348393699,1736502645746,-500.0,9.999e-05,2]
[348393700,1736502645755,-500.0,9.999e-05,2]
[348393701,1736502645764,-241.329397,9.999e-05,2]
[348393702,1736502645773,-500.0,9.999e-05,2]
[348393703,1736502645783,-500.0,9.999e-05,2]
[348393704,1736502645792,-500.0,9.999e-05,2]
[348393705,1736502645802,-500.0,9.999e-05,2]
[348393706,1736502645812,-500.0,9.999e-05,2]
[348393707,1736502645822,-500.0,9.999e-05,2]
[348393708,1736502645832,-572.37,9.999e-05,2]
[348393709,1736502645841,-500.0,9.999e-05,2]
[348393711,1736502645850,-2161.9,9.999e-05,2]
[348393712,1736502645859,-567.04,9.999e-05,2]
[348393713,1736502645868,-248.870209,9.999e-05,2]
[348393714,1736502645878,-326.51397642,9.999e-05,2]
[348393715,1736502645887,-500.0,9.999e-05,2]
[348393716,1736502645896,-500.0,9.999e-05,2]
[348393717,1736502645905,-538.26,9.999e-05,2]
[348393718,1736502645915,-500.0,9.999e-05,2]
[348393719,1736502645924,-501.68552284,9.999e-05,2]
[348393720,1736502645934,-500.0,9.999e-05,2]
[348393721,1736502645943,-338.23,9.999e-05,2]
[348393723,1736502645952,-502.16964848,9.999e-05,2]
[348393724,1736502645962,-500.0,9.999e-05,2]
[348393726,1736502645972,-500.0,9.999e-05,2]
[348393727,1736502645981,-500.0,9.999e-05,2]
[348393728,1736502645991,-607.43,9.999e-05,2]
[348393729,1736502646000,-500.0,9.999e-05,2]
[348393730,1736502646009,-500.0,9.999e-05,2]
[348393731,1736502646019,-500.0,9.999e-05,2]
[348393732,1736502646028,-500.0,9.999e-05,2]
[348393733,1736502646037,-648.73348907,9.999e-05,2]
[348393734,1736502646047,-584.73,9.999e-05,2]
[348393735,1736502646056,-673.74,9.999e-05,2]
[348393736,1736502646066,-652.49,9.999e-05,2]
[348393737,1736502646075,-506.49,9.999e-05,2]
[348393738,1736502646085,-500.0,9.999e-05,2]
[348393739,1736502646095,-722.24,9.999e-05,2]
[348393740,1736502646105,-516.69,9.999e-05,2]
[348393741,1736502646114,-500.0,9.999e-05,2]
[348393742,1736502646124,-333.9712648,9.999e-05,2]
[348393743,1736502646133,-500.0,9.999e-05,2]
[348393744,1736502646143,-500.0,9.999e-05,2]
[348393745,1736502646152,-623.91,9.999e-05,2]
[348393746,1736502646162,-560.9,9.999e-05,2]
[348393747,1736502646171,-652.62,9.999e-05,2]
[348393748,1736502646180,-501.73003074,9.999e-05,2]
[348393749,1736502646189,-680.18,9.999e-05,2]
[348393750,1736502646198,-500.0,9.999e-05,2]
[348393751,1736502646208,-500.0,9.999e-05,2]
[348393752,1736502646219,-501.14465816,9.999e-05,2]
[348393753,1736502646228,-500.0,9.999e-05,2]
[348393754,1736502646238,-500.0,9.999e-05,2]
[348393755,1736502646247,-500.0,9.999e-05,2]
[348393756,1736502646256,-500.0,9.999e-05,2]
[348393757,1736502646265,-607.63,9.999e-05,2]
[348393758,1736502646275,-500.0,9.999e-05,2]
[348393759,1736502646288,-1147.26,9.999e-05,2]
[348393760,1736502646298,-531.53,9.999e-05,2]
[348393761,1736502646307,-503.69,9.999e-05,2]
[348393762,1736502646317,-500.0,9.999e-05,2]
[348393763,1736502646329,-652.77,9.999e-05,2]
[348393764,1736502646338,-736.77,9.999e-05,2]
[348393765,1736502646347,-606.06,9.999e-05,2]
[348393766,1736502646356,-567.42,9.999e-05,2]
[348393767,1736502646365,-500.0,9.999e-05,2]